[Event "Late-Titled-Tuesday-Blitz-December-26-2023"]
[Site "Chess.com"]
[Date "2023.12.26"]
[Round "4"]
[White "DishonorOnYourCow"]
[Black "Vladimir_Zakhartsov"]
[Result "1/2-1/2"]
[WhiteElo "2562"]
[BlackElo "2874"]
[TimeControl "180+1"]
[EndTime "14:40:28 PST"]
[Termination "Game drawn by repetition"]

1. d4 {[%clk 0:03:00.9]} 1... Nf6 {[%clk 0:02:59.4]} 2. c4 {[%clk 0:03:00.1]}
2... g6 {[%clk 0:02:59.4]} 3. Nc3 {[%clk 0:03:00.2]} 3... d5 {[%clk 0:02:59.8]}
4. cxd5 {[%clk 0:03:00.1]} 4... Nxd5 {[%clk 0:03:00.7]} 5. e4 {[%clk 0:03:00.6]}
5... Nxc3 {[%clk 0:02:58.4]} 6. bxc3 {[%clk 0:03:01.5]} 6... Bg7 {[%clk
0:02:58.8]} 7. Nf3 {[%clk 0:03:02]} 7... c5 {[%clk 0:02:58.8]} 8. Rb1 {[%clk
0:03:02.3]} 8... O-O {[%clk 0:02:57.9]} 9. Be2 {[%clk 0:03:01.6]} 9... b6 {[%clk
0:02:57.7]} 10. O-O {[%clk 0:03:00.3]} 10... Bb7 {[%clk 0:02:58.1]} 11. Qd3
{[%clk 0:02:59.4]} 11... Nd7 {[%clk 0:02:52.5]} 12. d5 {[%clk 0:02:54.4]} 12...
Qc7 {[%clk 0:02:46.4]} 13. c4 {[%clk 0:02:49.9]} 13... e6 {[%clk 0:02:37.3]} 14.
Bb2 {[%clk 0:02:44.9]} 14... exd5 {[%clk 0:02:34.1]} 15. exd5 {[%clk 0:02:44.1]}
15... Bxb2 {[%clk 0:02:28.1]} 16. Rxb2 {[%clk 0:02:45]} 16... Rfe8 {[%clk
0:02:27.6]} 17. Qd2 {[%clk 0:02:22.9]} 17... Qd6 {[%clk 0:02:25.5]} 18. Qh6
{[%clk 0:02:12.7]} 18... Ba6 {[%clk 0:02:12.6]} 19. Bd3 {[%clk 0:02:04.6]} 19...
Qf6 {[%clk 0:02:06.4]} 20. Rb3 {[%clk 0:01:54.2]} 20... Re7 {[%clk 0:02:02.1]}
21. Ng5 {[%clk 0:01:41.8]} 21... Qg7 {[%clk 0:01:54.8]} 22. Qxg7+ {[%clk
0:01:20.9]} 22... Kxg7 {[%clk 0:01:55.7]} 23. Ra3 {[%clk 0:01:21.1]} 23... Bb7
{[%clk 0:01:46.1]} 24. Ne4 {[%clk 0:01:11.3]} 24... Ne5 {[%clk 0:01:42.4]} 25.
Nd6 {[%clk 0:00:48.4]} 25... Rd8 {[%clk 0:01:41.7]} 26. Nxb7 {[%clk 0:00:47.2]}
26... Rxb7 {[%clk 0:01:42.6]} 27. Be2 {[%clk 0:00:43.4]} 27... f5 {[%clk
0:01:36.1]} 28. f4 {[%clk 0:00:43.2]} 28... Nf7 {[%clk 0:01:35.9]} 29. Re3
{[%clk 0:00:37]} 29... Nd6 {[%clk 0:01:34.3]} 30. Bd3 {[%clk 0:00:37.3]} 30...
Re8 {[%clk 0:01:24.1]} 31. Rfe1 {[%clk 0:00:37.7]} 31... Kf8 {[%clk 0:00:58.8]}
32. a4 {[%clk 0:00:37.6]} 32... Rbe7 {[%clk 0:00:54.5]} 33. Kf2 {[%clk
0:00:36.8]} 33... Kf7 {[%clk 0:00:46.5]} 34. h3 {[%clk 0:00:36.5]} 34... Kf6
{[%clk 0:00:41.9]} 35. g4 {[%clk 0:00:36.4]} 35... h6 {[%clk 0:00:35.9]} 36. Kf3
{[%clk 0:00:36.1]} 36... Rxe3+ {[%clk 0:00:24.9]} 37. Rxe3 {[%clk 0:00:35.8]}
37... Rxe3+ {[%clk 0:00:25.6]} 38. Kxe3 {[%clk 0:00:36.7]} 38... fxg4 {[%clk
0:00:15.3]} 39. hxg4 {[%clk 0:00:37.6]} 39... g5 {[%clk 0:00:15.8]} 40. f5
{[%clk 0:00:30.9]} 40... Ke5 {[%clk 0:00:15.6]} 41. Bf1 {[%clk 0:00:20]} 41...
Ne8 {[%clk 0:00:14.2]} 42. Bd3 {[%clk 0:00:18.7]} 42... Nf6 {[%clk 0:00:12.2]}
43. Be2 {[%clk 0:00:19.2]} 43... Kd6 {[%clk 0:00:11.5]} 44. Bf3 {[%clk
0:00:18.4]} 44... Nd7 {[%clk 0:00:10.7]} 45. Ke4 {[%clk 0:00:14.2]} 45... Nf6+
{[%clk 0:00:06.6]} 46. Ke3 {[%clk 0:00:13.4]} 46... Ke5 {[%clk 0:00:06]} 47. Be2
{[%clk 0:00:13.8]} 47... Ne8 {[%clk 0:00:05.2]} 48. Bf3 {[%clk 0:00:13.3]} 48...
Nd6 {[%clk 0:00:04.9]} 49. Be2 {[%clk 0:00:13.7]} 49... a6 {[%clk 0:00:03.2]}
50. Bd3 {[%clk 0:00:13.2]} 50... Ne8 {[%clk 0:00:02.9]} 51. Be2 {[%clk
0:00:12.8]} 51... Nf6 {[%clk 0:00:02.4]} 52. Bf3 {[%clk 0:00:11.3]} 52... Nd7
{[%clk 0:00:02.6]} 53. Be2 {[%clk 0:00:11.3]} 53... Kd6 {[%clk 0:00:02.4]} 54.
Ke4 {[%clk 0:00:11.1]} 54... Nf6+ {[%clk 0:00:02.6]} 55. Ke3 {[%clk 0:00:11.5]}
55... Ne8 {[%clk 0:00:02.9]} 56. Ke4 {[%clk 0:00:12]} 56... Nf6+ {[%clk
0:00:02.5]} 57. Ke3 {[%clk 0:00:12.5]} 57... Ke5 {[%clk 0:00:03.2]} 58. Bf3
{[%clk 0:00:11.6]} 58... Ne8 {[%clk 0:00:02.9]} 59. Be2 {[%clk 0:00:11.9]} 59...
Nd6 {[%clk 0:00:03.3]} 60. Bd3 {[%clk 0:00:12]} 60... Nb7 {[%clk 0:00:03.5]} 61.
Be2 {[%clk 0:00:11.5]} 61... Nd8 {[%clk 0:00:03]} 62. Bd3 {[%clk 0:00:09.2]}
62... Nb7 {[%clk 0:00:03.2]} 63. Be2 {[%clk 0:00:09.3]} 63... Na5 {[%clk
0:00:03.8]} 64. Bd3 {[%clk 0:00:09.5]} 64... Nb3 {[%clk 0:00:04.2]} 65. Be2
{[%clk 0:00:07.6]} 65... Nd4 {[%clk 0:00:04]} 66. Bd3 {[%clk 0:00:07.4]} 66...
Nb3 {[%clk 0:00:03.9]} 67. Be2 {[%clk 0:00:07.7]} 67... Na5 {[%clk 0:00:04.3]}
68. Bd3 {[%clk 0:00:07.9]} 68... Nb7 {[%clk 0:00:05.1]} 1/2-1/2

[Event "Late-Titled-Tuesday-Blitz-December-26-2023"]
[Site "Chess.com"]
[Date "2023.12.26"]
[Round "4"]
[White "Cipy77"]
[Black "Zapateado"]
[Result "1-0"]
[WhiteElo "2585"]
[BlackElo "2344"]
[TimeControl "180+1"]
[EndTime "14:40:30 PST"]
[Termination "Cipy77 won by checkmate"]

1. a3 {[%clk 0:03:00.9]} 1... c5 {[%clk 0:02:58]} 2. e4 {[%clk 0:02:59.3]} 2...
g6 {[%clk 0:02:57.7]} 3. Nf3 {[%clk 0:02:58]} 3... Bg7 {[%clk 0:02:57.6]} 4. d4
{[%clk 0:02:58.6]} 4... cxd4 {[%clk 0:02:58.5]} 5. Nxd4 {[%clk 0:02:58.9]} 5...
Nc6 {[%clk 0:02:59.1]} 6. Nf3 {[%clk 0:02:54.7]} 6... Nf6 {[%clk 0:02:58.5]} 7.
Nc3 {[%clk 0:02:54.8]} 7... O-O {[%clk 0:02:54.9]} 8. Be2 {[%clk 0:02:55.2]}
8... d6 {[%clk 0:02:53.4]} 9. O-O {[%clk 0:02:55.1]} 9... h6 {[%clk 0:02:53.5]}
10. Re1 {[%clk 0:02:54.6]} 10... Be6 {[%clk 0:02:53.7]} 11. Be3 {[%clk
0:02:54.6]} 11... Rc8 {[%clk 0:02:53.5]} 12. Nd4 {[%clk 0:02:52.8]} 12... a6
{[%clk 0:02:50.9]} 13. Nxe6 {[%clk 0:02:51.7]} 13... fxe6 {[%clk 0:02:50.4]} 14.
Bc4 {[%clk 0:02:52.1]} 14... Qd7 {[%clk 0:02:35.6]} 15. Ba2 {[%clk 0:02:51.9]}
15... Kh7 {[%clk 0:02:34.2]} 16. h3 {[%clk 0:02:42.3]} 16... Ne5 {[%clk
0:02:27.3]} 17. Qe2 {[%clk 0:02:40]} 17... b5 {[%clk 0:02:25.5]} 18. Rad1 {[%clk
0:02:38.9]} 18... Nc4 {[%clk 0:02:24.3]} 19. Bc1 {[%clk 0:02:37.1]} 19... Nxa3
{[%clk 0:02:14.1]} 20. e5 {[%clk 0:02:24.9]} 20... Ne8 {[%clk 0:01:04.3]} 21.
exd6 {[%clk 0:02:19]} 21... Nc4 {[%clk 0:01:04.3]} 22. dxe7 {[%clk 0:02:01.4]}
22... Qxe7 {[%clk 0:01:05.2]} 23. Nd5 {[%clk 0:01:47.1]} 23... Qf7 {[%clk
0:00:57.1]} 24. Nf4 {[%clk 0:01:38.4]} 24... e5 {[%clk 0:00:37.6]} 25. Nd5
{[%clk 0:01:36.7]} 25... Ned6 {[%clk 0:00:34.2]} 26. c3 {[%clk 0:01:36]} 26...
Rcd8 {[%clk 0:00:30.1]} 27. Bb1 {[%clk 0:01:31.9]} 27... Nf5 {[%clk 0:00:28.3]}
28. Ne3 {[%clk 0:01:23.4]} 28... Nfxe3 {[%clk 0:00:28.9]} 29. Bxe3 {[%clk
0:01:23.7]} 29... Kh8 {[%clk 0:00:18.9]} 30. Bc1 {[%clk 0:01:18.7]} 30... Rxd1
{[%clk 0:00:15.9]} 31. Rxd1 {[%clk 0:01:15.7]} 31... Qf6 {[%clk 0:00:12.5]} 32.
b3 {[%clk 0:01:15.2]} 32... Nd6 {[%clk 0:00:11.1]} 33. Be3 {[%clk 0:01:12.3]}
33... Nf5 {[%clk 0:00:11.5]} 34. Bc5 {[%clk 0:01:12.1]} 34... Rc8 {[%clk
0:00:12.1]} 35. b4 {[%clk 0:01:12.3]} 35... a5 {[%clk 0:00:10.1]} 36. Qg4 {[%clk
0:01:11]} 36... axb4 {[%clk 0:00:09.2]} 37. cxb4 {[%clk 0:01:10.7]} 37... Re8
{[%clk 0:00:09]} 38. Be4 {[%clk 0:01:09.3]} 38... h5 {[%clk 0:00:09.5]} 39. Qe2
{[%clk 0:01:07.9]} 39... Nd4 {[%clk 0:00:10]} 40. Qd3 {[%clk 0:01:03.9]} 40...
Re6 {[%clk 0:00:07.9]} 41. Bd5 {[%clk 0:00:59.5]} 41... Ra6 {[%clk 0:00:08.2]}
42. Bxd4 {[%clk 0:00:58.6]} 42... exd4 {[%clk 0:00:08.2]} 43. Qxb5 {[%clk
0:00:59.1]} 43... Rb6 {[%clk 0:00:07.8]} 44. Qe8+ {[%clk 0:00:58.1]} 44... Kh7
{[%clk 0:00:07.5]} 45. b5 {[%clk 0:00:55]} 45... Qf8 {[%clk 0:00:05.6]} 46. Qxf8
{[%clk 0:00:51]} 46... Bxf8 {[%clk 0:00:06.5]} 47. Bc6 {[%clk 0:00:48.2]} 47...
Bg7 {[%clk 0:00:05.8]} 48. Kf1 {[%clk 0:00:48.4]} 48... g5 {[%clk 0:00:06.1]}
49. Ke2 {[%clk 0:00:48.2]} 49... Kg6 {[%clk 0:00:06.6]} 50. Kd3 {[%clk
0:00:48.3]} 50... Kf5 {[%clk 0:00:06.9]} 51. Kc4 {[%clk 0:00:48.8]} 51... Rb8
{[%clk 0:00:06.3]} 52. Kc5 {[%clk 0:00:49.1]} 52... Bf8+ {[%clk 0:00:06.2]} 53.
Kxd4 {[%clk 0:00:46.1]} 53... g4 {[%clk 0:00:06]} 54. hxg4+ {[%clk 0:00:44.9]}
54... hxg4 {[%clk 0:00:06.9]} 55. Rb1 {[%clk 0:00:43.8]} 55... Bg7+ {[%clk
0:00:07.2]} 56. Kc5 {[%clk 0:00:43.9]} 56... Bf8+ {[%clk 0:00:07.8]} 57. Kc4
{[%clk 0:00:44.3]} 57... Bd6 {[%clk 0:00:07.7]} 58. b6 {[%clk 0:00:44]} 58... g3
{[%clk 0:00:07.9]} 59. Kd5 {[%clk 0:00:44.1]} 59... Kf4 {[%clk 0:00:08.5]} 60.
Kxd6 {[%clk 0:00:44]} 60... gxf2 {[%clk 0:00:09.4]} 61. Kc7 {[%clk 0:00:44.1]}
61... Rf8 {[%clk 0:00:08.8]} 62. b7 {[%clk 0:00:44.6]} 62... Ke3 {[%clk
0:00:09.5]} 63. Bd7 {[%clk 0:00:43.9]} 63... Ke2 {[%clk 0:00:09.5]} 64. Bc8
{[%clk 0:00:42.9]} 64... Rf7+ {[%clk 0:00:10]} 65. Bd7 {[%clk 0:00:41.8]} 65...
Rf8 {[%clk 0:00:10.7]} 66. Rb2+ {[%clk 0:00:41.7]} 66... Ke1 {[%clk 0:00:10.3]}
67. Rxf2 {[%clk 0:00:41.5]} 67... Kxf2 {[%clk 0:00:11.2]} 68. g4 {[%clk
0:00:41.6]} 68... Kg3 {[%clk 0:00:10.9]} 69. g5 {[%clk 0:00:41.6]} 69... Rg8
{[%clk 0:00:10.7]} 70. b8=Q {[%clk 0:00:40.3]} 70... Rxb8 {[%clk 0:00:10.9]} 71.
Kxb8 {[%clk 0:00:40]} 71... Kf4 {[%clk 0:00:11.8]} 72. g6 {[%clk 0:00:40.4]}
72... Kg5 {[%clk 0:00:12.7]} 73. g7 {[%clk 0:00:40.8]} 73... Kh6 {[%clk
0:00:13.6]} 74. g8=Q {[%clk 0:00:41.4]} 74... Kh5 {[%clk 0:00:14.4]} 75. Qg4+
{[%clk 0:00:41.2]} 75... Kh6 {[%clk 0:00:15.3]} 76. Kc7 {[%clk 0:00:41]} 76...
Kh7 {[%clk 0:00:16.2]} 77. Kd6 {[%clk 0:00:41.6]} 77... Kh8 {[%clk 0:00:16.7]}
78. Ke7 {[%clk 0:00:42.1]} 78... Kh7 {[%clk 0:00:17.6]} 79. Kf6 {[%clk
0:00:42.6]} 79... Kh8 {[%clk 0:00:18.2]} 80. Qg7# {[%clk 0:00:43.1]} 1-0

[Event "Late-Titled-Tuesday-Blitz-December-26-2023"]
[Site "Chess.com"]
[Date "2023.12.26"]
[Round "4"]
[White "HalfIsCrayfish"]
[Black "EsmeraldasAnderson03"]
[Result "1-0"]
[WhiteElo "2610"]
[BlackElo "2396"]
[TimeControl "180+1"]
[EndTime "14:40:32 PST"]
[Termination "HalfIsCrayfish won on time"]

1. Nh3 {[%clk 0:03:00.9]} 1... Nf6 {[%clk 0:01:47.3]} 2. g3 {[%clk 0:02:55.3]}
2... g6 {[%clk 0:01:45.8]} 3. Bg2 {[%clk 0:02:55.5]} 3... Bg7 {[%clk 0:01:46.1]}
4. O-O {[%clk 0:02:56.1]} 4... O-O {[%clk 0:01:42.6]} 5. e4 {[%clk 0:02:55.7]}
5... d6 {[%clk 0:01:42.4]} 6. f3 {[%clk 0:02:53.5]} 6... e5 {[%clk 0:01:42.5]}
7. d3 {[%clk 0:02:48]} 7... Nc6 {[%clk 0:01:42.4]} 8. Be3 {[%clk 0:02:45.7]}
8... h6 {[%clk 0:01:41.3]} 9. Nf2 {[%clk 0:02:45.1]} 9... Kh7 {[%clk 0:01:41.4]}
10. f4 {[%clk 0:02:44.3]} 10... Ng8 {[%clk 0:01:37.8]} 11. Nc3 {[%clk
0:02:43.6]} 11... f5 {[%clk 0:01:37.9]} 12. Qd2 {[%clk 0:02:43.4]} 12... Nf6
{[%clk 0:01:35.3]} 13. Rae1 {[%clk 0:02:42.4]} 13... Be6 {[%clk 0:01:33.7]} 14.
Nd5 {[%clk 0:02:35.2]} 14... Qd7 {[%clk 0:01:32.7]} 15. Nxf6+ {[%clk 0:02:33.8]}
15... Rxf6 {[%clk 0:01:32.4]} 16. c4 {[%clk 0:02:27.3]} 16... Raf8 {[%clk
0:01:30.9]} 17. b3 {[%clk 0:02:20.8]} 17... R6f7 {[%clk 0:01:26.2]} 18. h4
{[%clk 0:02:17.1]} 18... b6 {[%clk 0:01:25.1]} 19. Kh2 {[%clk 0:02:16.1]} 19...
Nd4 {[%clk 0:01:20.7]} 20. Bxd4 {[%clk 0:02:10]} 20... exd4 {[%clk 0:01:21.1]}
21. exf5 {[%clk 0:02:09]} 21... Bxf5 {[%clk 0:01:20.4]} 22. Bd5 {[%clk
0:02:06.7]} 22... Re7 {[%clk 0:01:19]} 23. Rxe7 {[%clk 0:02:05.4]} 23... Qxe7
{[%clk 0:01:19.9]} 24. Re1 {[%clk 0:02:05.7]} 24... Qd7 {[%clk 0:01:20.4]} 25.
Qe2 {[%clk 0:02:00.4]} 25... c6 {[%clk 0:01:19.5]} 26. Bf3 {[%clk 0:01:56.3]}
26... Rf6 {[%clk 0:01:19.5]} 27. Ne4 {[%clk 0:01:11.7]} 27... Re6 {[%clk
0:01:12.9]} 28. g4 {[%clk 0:01:04.2]} 28... Bxe4 {[%clk 0:01:11.7]} 29. dxe4
{[%clk 0:01:04.5]} 29... c5 {[%clk 0:01:11.6]} 30. Qd3 {[%clk 0:00:56.7]} 30...
Qf7 {[%clk 0:01:11.3]} 31. f5 {[%clk 0:00:54.1]} 31... gxf5 {[%clk 0:01:08.1]}
32. gxf5 {[%clk 0:00:52.7]} 32... Be5+ {[%clk 0:01:06.9]} 33. Kh1 {[%clk
0:00:50.7]} 33... Re8 {[%clk 0:01:07.8]} 34. Qe2 {[%clk 0:00:36]} 34... Rg8
{[%clk 0:01:05.4]} 35. Rg1 {[%clk 0:00:35.6]} 35... Qf6 {[%clk 0:00:51.3]} 36.
Qf2 {[%clk 0:00:35.6]} 36... Rxg1+ {[%clk 0:00:48.1]} 37. Kxg1 {[%clk
0:00:36.5]} 37... d3 {[%clk 0:00:48.3]} 38. Kg2 {[%clk 0:00:29.9]} 38... Bf4
{[%clk 0:00:40.5]} 39. Bh5 {[%clk 0:00:28]} 39... Qe5 {[%clk 0:00:39.2]} 40. Kf3
{[%clk 0:00:18.8]} 40... d2 {[%clk 0:00:37.6]} 41. Qe2 {[%clk 0:00:16.1]} 41...
Kg7 {[%clk 0:00:25.6]} 42. Qg2+ {[%clk 0:00:15.2]} 42... Kf8 {[%clk 0:00:25.6]}
43. Qe2 {[%clk 0:00:08.7]} 43... Ke7 {[%clk 0:00:15.4]} 44. Qd3 {[%clk
0:00:08.6]} 44... Kf6 {[%clk 0:00:13.8]} 45. Kg2 {[%clk 0:00:05.1]} 45... Qd4
{[%clk 0:00:12]} 46. Qxd4+ {[%clk 0:00:05]} 46... cxd4 {[%clk 0:00:12.9]} 47.
Kf1 {[%clk 0:00:05.2]} 47... Ke5 {[%clk 0:00:12.7]} 48. Bf3 {[%clk 0:00:05.8]}
48... Bg3 {[%clk 0:00:12.1]} 49. Ke2 {[%clk 0:00:05.9]} 49... Bf4 {[%clk
0:00:11.5]} 50. Kd3 {[%clk 0:00:06.4]} 50... a5 {[%clk 0:00:10.8]} 51. a3 {[%clk
0:00:06.2]} 51... Be3 {[%clk 0:00:09.4]} 52. b4 {[%clk 0:00:06.3]} 52... a4
{[%clk 0:00:08.8]} 53. h5 {[%clk 0:00:06.1]} 53... Kf6 {[%clk 0:00:08]} 54. Bd1
{[%clk 0:00:06.5]} 54... Kg5 {[%clk 0:00:08.7]} 55. Bxa4 {[%clk 0:00:06.6]}
55... Kxh5 {[%clk 0:00:08.6]} 56. Bd1+ {[%clk 0:00:06.9]} 56... Kg5 {[%clk
0:00:09.2]} 57. Ke2 {[%clk 0:00:06.8]} 57... h5 {[%clk 0:00:08.9]} 58. Kf3
{[%clk 0:00:07.4]} 58... h4 {[%clk 0:00:09.1]} 59. a4 {[%clk 0:00:08]} 59... Bf4
{[%clk 0:00:07.1]} 60. a5 {[%clk 0:00:08.1]} 60... bxa5 {[%clk 0:00:06.8]} 61.
bxa5 {[%clk 0:00:09]} 61... h3 {[%clk 0:00:06.5]} 62. a6 {[%clk 0:00:09.3]}
62... d5 {[%clk 0:00:06.6]} 63. cxd5 {[%clk 0:00:06.3]} 63... Bb8 {[%clk
0:00:06.3]} 64. d6 {[%clk 0:00:06.8]} 64... h2 {[%clk 0:00:03.7]} 65. Kg2 {[%clk
0:00:06.7]} 65... Bxd6 {[%clk 0:00:03.9]} 66. a7 {[%clk 0:00:06.8]} 1-0

[Event "Late-Titled-Tuesday-Blitz-December-26-2023"]
[Site "Chess.com"]
[Date "2023.12.26"]
[Round "4"]
[White "Fore_Man"]
[Black "kingofthenil"]
[Result "0-1"]
[WhiteElo "2400"]
[BlackElo "2679"]
[TimeControl "180+1"]
[EndTime "14:40:36 PST"]
[Termination "kingofthenil won by resignation"]

1. Nf3 {[%clk 0:03:00.9]} 1... d5 {[%clk 0:02:57.8]} 2. d4 {[%clk 0:03:01.1]}
2... Bf5 {[%clk 0:02:55.6]} 3. g3 {[%clk 0:03:01.5]} 3... e6 {[%clk 0:02:51.4]}
4. Bg2 {[%clk 0:03:01.1]} 4... Nc6 {[%clk 0:02:50.3]} 5. O-O {[%clk 0:03:01.6]}
5... Nb4 {[%clk 0:02:50.3]} 6. Na3 {[%clk 0:03:01.1]} 6... Be7 {[%clk 0:02:41]}
7. c3 {[%clk 0:03:00.4]} 7... Nc6 {[%clk 0:02:31]} 8. Nc2 {[%clk 0:03:00.6]}
8... Be4 {[%clk 0:02:28.6]} 9. Nce1 {[%clk 0:02:59.1]} 9... h5 {[%clk
0:02:10.8]} 10. h4 {[%clk 0:02:56.9]} 10... Nf6 {[%clk 0:02:10.2]} 11. Nd3
{[%clk 0:02:56.8]} 11... Ng4 {[%clk 0:02:09.2]} 12. Bg5 {[%clk 0:02:54]} 12...
f6 {[%clk 0:01:59.3]} 13. Bd2 {[%clk 0:02:43.9]} 13... g5 {[%clk 0:01:57.3]} 14.
hxg5 {[%clk 0:02:40.1]} 14... fxg5 {[%clk 0:01:58.2]} 15. Nc5 {[%clk 0:02:40.2]}
15... Bxc5 {[%clk 0:01:49.7]} 16. dxc5 {[%clk 0:02:41.1]} 16... Rg8 {[%clk
0:01:50.1]} 17. Qa4 {[%clk 0:02:21.1]} 17... h4 {[%clk 0:01:17.3]} 18. Nd4
{[%clk 0:02:11.4]} 18... Bxg2 {[%clk 0:01:06.9]} 19. Nxc6 {[%clk 0:02:07.6]}
19... bxc6 {[%clk 0:01:05.3]} 20. Qxg4 {[%clk 0:01:30.1]} 20... Bxf1 {[%clk
0:00:57.1]} 21. Qxe6+ {[%clk 0:01:30]} 21... Kf8 {[%clk 0:00:57.5]} 22. Rxf1
{[%clk 0:01:29.3]} 22... Qe7 {[%clk 0:00:52.2]} 23. Qxc6 {[%clk 0:01:25.7]}
23... Rd8 {[%clk 0:00:50.6]} 24. Qh6+ {[%clk 0:00:40.3]} 24... Qg7 {[%clk
0:00:40.1]} 25. Bxg5 {[%clk 0:00:40.1]} 25... Qxh6 {[%clk 0:00:36.5]} 26. Bxh6+
{[%clk 0:00:41]} 26... Kf7 {[%clk 0:00:37.3]} 27. Bf4 {[%clk 0:00:35]} 27... c6
{[%clk 0:00:28.2]} 28. e3 {[%clk 0:00:26.3]} 28... Ke6 {[%clk 0:00:28.1]} 29.
Kg2 {[%clk 0:00:25.5]} 29... Rh8 {[%clk 0:00:26.5]} 30. Re1 {[%clk 0:00:22.1]}
30... Rdg8 {[%clk 0:00:27.4]} 31. e4 {[%clk 0:00:20.2]} 31... dxe4 {[%clk
0:00:27.1]} 32. Rxe4+ {[%clk 0:00:21.1]} 32... Kd5 {[%clk 0:00:28]} 33. Re5+
{[%clk 0:00:21.6]} 33... Kc4 {[%clk 0:00:28.3]} 34. Rf5 {[%clk 0:00:11.4]} 34...
Rg6 {[%clk 0:00:21.3]} 35. Be5 {[%clk 0:00:05.9]} 35... Rh7 {[%clk 0:00:20.1]}
36. b3+ {[%clk 0:00:05.6]} 36... Kd3 {[%clk 0:00:20.4]} 37. Bf4 {[%clk
0:00:04.7]} 37... Kxc3 {[%clk 0:00:18.6]} 38. Re5 {[%clk 0:00:04.1]} 38... Kb2
{[%clk 0:00:18.8]} 39. Re2+ {[%clk 0:00:04.1]} 39... Ka3 {[%clk 0:00:19.3]} 40.
Bc1+ {[%clk 0:00:03.7]} 40... Kb4 {[%clk 0:00:20]} 41. Re4+ {[%clk 0:00:03.1]}
41... Kxc5 {[%clk 0:00:20.5]} 42. Be3+ {[%clk 0:00:03.8]} 42... Kb5 {[%clk
0:00:20.8]} 43. a4+ {[%clk 0:00:02.6]} 43... Ka6 {[%clk 0:00:21.3]} 44. b4
{[%clk 0:00:02.1]} 44... Kb7 {[%clk 0:00:15.5]} 45. Rf4 {[%clk 0:00:01.3]} 45...
hxg3 {[%clk 0:00:14.2]} 46. fxg3 {[%clk 0:00:02.2]} 46... Re6 {[%clk 0:00:14.2]}
47. Rf3 {[%clk 0:00:03.1]} 47... Re4 {[%clk 0:00:13.8]} 48. Bc5 {[%clk 0:00:04]}
48... a5 {[%clk 0:00:13.4]} 49. bxa5 {[%clk 0:00:04.2]} 49... Rxa4 {[%clk
0:00:14]} 50. Bb6 {[%clk 0:00:05.1]} 50... Ra2+ {[%clk 0:00:12.6]} 51. Kg1
{[%clk 0:00:05.7]} 51... Rd7 {[%clk 0:00:12]} 52. Rf1 {[%clk 0:00:05.3]} 52...
Rdd2 {[%clk 0:00:11.9]} 53. Rf2 {[%clk 0:00:04.5]} 53... Rxf2 {[%clk 0:00:11.6]}
54. Bxf2 {[%clk 0:00:05.4]} 54... Rxa5 {[%clk 0:00:12.3]} 55. g4 {[%clk
0:00:05.8]} 55... Ra4 {[%clk 0:00:12.7]} 56. g5 {[%clk 0:00:05]} 56... Rg4+
{[%clk 0:00:13.6]} 57. Kf1 {[%clk 0:00:05.9]} 57... Rxg5 {[%clk 0:00:14.1]} 58.
Ke2 {[%clk 0:00:06.8]} 58... Rd5 {[%clk 0:00:15]} 59. Be3 {[%clk 0:00:07.1]}
59... Ka6 {[%clk 0:00:15.9]} 60. Bd2 {[%clk 0:00:07.4]} 60... Kb5 {[%clk
0:00:16.8]} 61. Kd1 {[%clk 0:00:07.8]} 61... Kc4 {[%clk 0:00:17.7]} 62. Kc2
{[%clk 0:00:08.7]} 62... Rd3 {[%clk 0:00:18.5]} 63. Bc1 {[%clk 0:00:08.8]} 63...
Rg3 {[%clk 0:00:17.9]} 64. Bf4 {[%clk 0:00:09.1]} 64... Rg2+ {[%clk 0:00:18.8]}
65. Kd1 {[%clk 0:00:09.7]} 65... c5 {[%clk 0:00:19.6]} 66. Be5 {[%clk
0:00:09.9]} 66... Kd3 {[%clk 0:00:20.5]} 67. Kc1 {[%clk 0:00:09.9]} 67... c4
{[%clk 0:00:21.4]} 68. Bf4 {[%clk 0:00:10.3]} 68... c3 {[%clk 0:00:22.3]} 69.
Kb1 {[%clk 0:00:06.6]} 69... Rf2 {[%clk 0:00:20.6]} 70. Bg5 {[%clk 0:00:06.2]}
70... Rf1+ {[%clk 0:00:21.5]} 71. Ka2 {[%clk 0:00:06.3]} 71... c2 {[%clk
0:00:22.4]} 72. Kb2 {[%clk 0:00:06.8]} 72... Rb1+ {[%clk 0:00:22.5]} 73. Ka2
{[%clk 0:00:07]} 73... c1=Q {[%clk 0:00:23.3]} 74. Bxc1 {[%clk 0:00:06.8]} 74...
Rxc1 {[%clk 0:00:24.2]} 0-1